[Event "Titled Tuesday Blitz January 31 Late 2023"]
[White "Torres Dominguez, David"]
[Black "Novikov, Evgenij"]
[WhiteFideId "2220857"]
[BlackFideId "4125380"]
[WhiteElo "1994"]
[BlackElo "2276"]
[Result "0-1"]
[Round "09"]
[TimeControl "180+2"]
[Date "2023.01.31"]
[WhiteClock "0:00:03"]
[BlackClock "0:00:13"]

1. e4 {[%clk 0:02:52]}  d5 {[%clk 0:02:58]} 2. d3 {[%clk 0:02:51]}  Nc6 {[%clk 0:02:53]} 3. exd5 {[%clk 0:02:48]}  Qxd5 {[%clk 0:02:54]} 4. Nf3 {[%clk 0:02:47]}  Bg4 {[%clk 0:02:53]} 5. Be2 {[%clk 0:02:48]}  e5 {[%clk 0:02:51]} 6. O-O {[%clk 0:02:48]}  O-O-O {[%clk 0:02:50]} 7. Be3 {[%clk 0:02:45]}  Nf6 {[%clk 0:02:45]} 8. a3 {[%clk 0:02:39]}  e4 {[%clk 0:02:33]} 9. dxe4 {[%clk 0:02:26]}  Qxe4 {[%clk 0:02:31]} 10. Qe1 {[%clk 0:02:18]}  Qxc2 {[%clk 0:02:13]} 11. Nbd2 {[%clk 0:02:18]}  Qxb2 {[%clk 0:01:54]} 12. Nc4 {[%clk 0:01:49]}  Qc2 {[%clk 0:01:41]} 13. Rc1 {[%clk 0:01:41]}  Qa4 {[%clk 0:01:32]} 14. Nb2 {[%clk 0:01:08]}  Qa5 {[%clk 0:01:22]} 15. Bd2 {[%clk 0:01:00]}  Qxa3 {[%clk 0:01:16]} 16. Nc4 {[%clk 0:00:59]}  Qa2 {[%clk 0:01:13]} 17. Ra1 {[%clk 0:00:58]}  Qc2 {[%clk 0:01:03]} 18. Ne3 {[%clk 0:00:35]}  Qc5 {[%clk 0:00:42]} 19. Rc1 {[%clk 0:00:27]}  Qd6 {[%clk 0:00:34]} 20. Rxc6 {[%clk 0:00:26]}  Qxc6 {[%clk 0:00:27]} 21. Ne5 {[%clk 0:00:25]}  Qd6 {[%clk 0:00:21]} 22. Bxg4+ {[%clk 0:00:16]}  Nxg4 {[%clk 0:00:21]} 23. N3xg4 {[%clk 0:00:15]}  Qxd2 {[%clk 0:00:20]} 24. Qa1 {[%clk 0:00:15]}  Bc5 {[%clk 0:00:17]} 25. Nxf7 {[%clk 0:00:13]}  Rhf8 {[%clk 0:00:16]} 26. Nxd8 {[%clk 0:00:13]}  Rxd8 {[%clk 0:00:16]} 27. h3 {[%clk 0:00:10]}  h5 {[%clk 0:00:15]} 28. Ne5 {[%clk 0:00:09]}  Bd4 {[%clk 0:00:13]} 29. Qa2 {[%clk 0:00:03]}  Qxa2 {[%clk 0:00:13]} 0-1


[Site "https://www.chess.com"]

[Event "Titled Tuesday Blitz January 31 Late 2023"]
[White "Ansh M Shah"]
[Black "Aarav Dengla"]
[WhiteFideId "25033379"]
[BlackFideId "45059756"]
[WhiteElo "2171"]
[BlackElo "2343"]
[Result "1-0"]
[Round "09"]
[TimeControl "180+2"]
[Date "2023.01.31"]
[WhiteClock "0:00:21"]
[BlackClock "0:00:05"]

1. d4 {[%clk 0:03:00]}  d5 {[%clk 0:02:57]} 2. c4 {[%clk 0:03:01]}  e6 {[%clk 0:02:56]} 3. g3 {[%clk 0:03:01]}  dxc4 {[%clk 0:02:53]} 4. Bg2 {[%clk 0:03:02]}  c5 {[%clk 0:02:53]} 5. Nf3 {[%clk 0:03:02]}  Nc6 {[%clk 0:02:53]} 6. Qa4 {[%clk 0:02:47]}  cxd4 {[%clk 0:02:51]} 7. Nxd4 {[%clk 0:02:46]}  Qxd4 {[%clk 0:02:51]} 8. Bxc6+ {[%clk 0:02:45]}  Bd7 {[%clk 0:02:51]} 9. Be3 {[%clk 0:01:52]}  Qd6 {[%clk 0:02:31]} 10. Bxd7+ {[%clk 0:01:44]}  Qxd7 {[%clk 0:02:32]} 11. Qxc4 {[%clk 0:01:44]}  Rc8 {[%clk 0:02:31]} 12. Qb3 {[%clk 0:01:41]}  Nf6 {[%clk 0:02:08]} 13. O-O {[%clk 0:01:40]}  Nd5 {[%clk 0:02:07]} 14. Rd1 {[%clk 0:01:35]}  Nxe3 {[%clk 0:02:04]} 15. fxe3 {[%clk 0:01:25]}  Qc6 {[%clk 0:02:03]} 16. Nd2 {[%clk 0:01:24]}  Be7 {[%clk 0:02:00]} 17. Rac1 {[%clk 0:01:21]}  Qxc1 {[%clk 0:01:56]} 18. Rxc1 {[%clk 0:01:22]}  Rxc1+ {[%clk 0:01:57]} 19. Kf2 {[%clk 0:01:23]}  O-O {[%clk 0:01:53]} 20. Qxb7 {[%clk 0:01:23]}  Bf6 {[%clk 0:01:49]} 21. Ne4 {[%clk 0:01:16]}  Be5 {[%clk 0:01:48]} 22. b3 {[%clk 0:01:14]}  h6 {[%clk 0:01:45]} 23. Qxa7 {[%clk 0:01:12]}  Rd8 {[%clk 0:01:24]} 24. Nc5 {[%clk 0:01:03]}  Rdd1 {[%clk 0:00:57]} 25. Nd3 {[%clk 0:01:01]}  Rf1+ {[%clk 0:00:23]} 26. Kg2 {[%clk 0:01:01]}  Rg1+ {[%clk 0:00:18]} 27. Kh3 {[%clk 0:01:00]}  Bf6 {[%clk 0:00:18]} 28. Nxc1 {[%clk 0:00:59]}  Rxc1 {[%clk 0:00:19]} 29. a4 {[%clk 0:00:55]}  Re1 {[%clk 0:00:18]} 30. a5 {[%clk 0:00:29]}  Rxe2 {[%clk 0:00:17]} 31. a6 {[%clk 0:00:30]}  g5 {[%clk 0:00:17]} 32. Qb8+ {[%clk 0:00:29]}  Kg7 {[%clk 0:00:16]} 33. a7 {[%clk 0:00:19]}  h5 {[%clk 0:00:08]} 34. g4 {[%clk 0:00:19]}  Rxe3+ {[%clk 0:00:08]} 35. Kg2 {[%clk 0:00:20]}  Be5 {[%clk 0:00:09]} 36. Qxe5+ {[%clk 0:00:19]}  Rxe5 {[%clk 0:00:09]} 37. a8=Q {[%clk 0:00:19]}  hxg4 {[%clk 0:00:09]} 38. Qa1 {[%clk 0:00:17]}  f6 {[%clk 0:00:07]} 39. b4 {[%clk 0:00:16]}  Re2+ {[%clk 0:00:03]} 40. Kg3 {[%clk 0:00:17]}  Re3+ {[%clk 0:00:03]} 41. Kf2 {[%clk 0:00:17]}  Rf3+ {[%clk 0:00:03]} 42. Kg2 {[%clk 0:00:17]}  Rb3 {[%clk 0:00:04]} 43. Qd4 {[%clk 0:00:17]}  e5 {[%clk 0:00:03]} 44. Qd7+ {[%clk 0:00:16]}  Kg6 {[%clk 0:00:03]} 45. Qe8+ {[%clk 0:00:16]}  Kf5 {[%clk 0:00:02]} 46. Qc8+ {[%clk 0:00:17]}  Kg6 {[%clk 0:00:02]} 47. Qc2+ {[%clk 0:00:17]}  e4 {[%clk 0:00:02]} 48. Qxb3 {[%clk 0:00:17]}  f5 {[%clk 0:00:03]} 49. Qe6+ {[%clk 0:00:17]}  Kh5 {[%clk 0:00:02]} 50. Qxf5 {[%clk 0:00:17]}  Kh6 {[%clk 0:00:02]} 51. Qxg4 {[%clk 0:00:17]}  e3 {[%clk 0:00:03]} 52. Kf3 {[%clk 0:00:17]}  Kg6 {[%clk 0:00:02]} 53. Kxe3 {[%clk 0:00:17]}  Kf6 {[%clk 0:00:03]} 54. h4 {[%clk 0:00:17]}  Ke7 {[%clk 0:00:04]} 55. Qxg5+ {[%clk 0:00:17]}  Kd6 {[%clk 0:00:04]} 56. h5 {[%clk 0:00:17]}  Kc6 {[%clk 0:00:04]} 57. h6 {[%clk 0:00:18]}  Kb6 {[%clk 0:00:04]} 58. h7 {[%clk 0:00:19]}  Kb7 {[%clk 0:00:04]} 59. h8=Q {[%clk 0:00:20]}  Ka7 {[%clk 0:00:05]} 60. Qhh6 {[%clk 0:00:21]}  Kb7 {[%clk 0:00:05]} 61. Qgg7+ {[%clk 0:00:21]} 1-0


[Site "https://www.chess.com"]

[Event "Titled Tuesday Blitz January 31 Late 2023"]
[White "Rosen, Eric"]
[Black "Gonzalez, Francisco Silva"]
[WhiteFideId "2032562"]
[BlackFideId "1512285"]
[WhiteElo "2349"]
[BlackElo "2021"]
[Result "1-0"]
[Round "09"]
[TimeControl "180+2"]
[Date "2023.01.31"]
[WhiteClock "0:00:06"]
[BlackClock "0:00:02"]

1. e4 {[%clk 0:03:00]}  e5 {[%clk 0:02:38]} 2. Nf3 {[%clk 0:02:58]}  Nc6 {[%clk 0:02:36]} 3. c3 {[%clk 0:02:56]}  d5 {[%clk 0:02:33]} 4. Qa4 {[%clk 0:02:55]}  f6 {[%clk 0:02:32]} 5. Bb5 {[%clk 0:02:54]}  Ne7 {[%clk 0:02:31]} 6. exd5 {[%clk 0:02:52]}  Qxd5 {[%clk 0:02:31]} 7. O-O {[%clk 0:02:52]}  a6 {[%clk 0:02:31]} 8. Bc4 {[%clk 0:02:40]}  b5 {[%clk 0:02:30]} 9. Bxd5 {[%clk 0:02:31]}  bxa4 {[%clk 0:02:30]} 10. Bc4 {[%clk 0:02:11]}  Na5 {[%clk 0:02:29]} 11. Be2 {[%clk 0:02:07]}  e4 {[%clk 0:02:24]} 12. Ne1 {[%clk 0:01:56]}  Be6 {[%clk 0:02:14]} 13. d3 {[%clk 0:01:56]}  exd3 {[%clk 0:02:00]} 14. Nxd3 {[%clk 0:01:55]}  Bc4 {[%clk 0:01:57]} 15. Nf4 {[%clk 0:01:47]}  Bxe2 {[%clk 0:01:56]} 16. Nxe2 {[%clk 0:01:48]}  Ng6 {[%clk 0:01:50]} 17. Re1 {[%clk 0:01:33]}  Kf7 {[%clk 0:01:49]} 18. Be3 {[%clk 0:01:23]}  c5 {[%clk 0:01:41]} 19. Nd2 {[%clk 0:01:22]}  Rb8 {[%clk 0:01:38]} 20. Rab1 {[%clk 0:01:22]}  Bd6 {[%clk 0:01:34]} 21. Ne4 {[%clk 0:01:21]}  Rhd8 {[%clk 0:01:19]} 22. Red1 {[%clk 0:00:59]}  Nc4 {[%clk 0:01:15]} 23. Nxd6+ {[%clk 0:00:52]}  Nxd6 {[%clk 0:01:06]} 24. Bxc5 {[%clk 0:00:49]}  Nc4 {[%clk 0:01:06]} 25. Rxd8 {[%clk 0:00:47]}  Rxd8 {[%clk 0:01:05]} 26. Nd4 {[%clk 0:00:44]}  Nf4 {[%clk 0:00:59]} 27. b3 {[%clk 0:00:42]}  Rc8 {[%clk 0:00:42]} 28. bxc4 {[%clk 0:00:32]}  Rxc5 {[%clk 0:00:42]} 29. Rb7+ {[%clk 0:00:33]}  Kg6 {[%clk 0:00:42]} 30. g3 {[%clk 0:00:31]}  Nd3 {[%clk 0:00:16]} 31. Ne6 {[%clk 0:00:31]}  Rxc4 {[%clk 0:00:16]} 32. Rxg7+ {[%clk 0:00:31]}  Kf5 {[%clk 0:00:16]} 33. Nd4+ {[%clk 0:00:31]}  Ke4 {[%clk 0:00:15]} 34. Re7+ {[%clk 0:00:30]}  Kd5 {[%clk 0:00:16]} 35. Ne2 {[%clk 0:00:24]}  Kd6 {[%clk 0:00:14]} 36. Rxh7 {[%clk 0:00:23]}  a5 {[%clk 0:00:13]} 37. Ra7 {[%clk 0:00:22]}  Rc5 {[%clk 0:00:12]} 38. h4 {[%clk 0:00:22]}  Ne5 {[%clk 0:00:10]} 39. Kg2 {[%clk 0:00:20]}  Ng4 {[%clk 0:00:10]} 40. f3 {[%clk 0:00:16]}  Ne5 {[%clk 0:00:09]} 41. h5 {[%clk 0:00:15]}  Rd5 {[%clk 0:00:08]} 42. Ra6+ {[%clk 0:00:12]}  Ke7 {[%clk 0:00:08]} 43. Nd4 {[%clk 0:00:12]}  Nc4 {[%clk 0:00:07]} 44. h6 {[%clk 0:00:12]}  Kf7 {[%clk 0:00:07]} 45. Ra7+ {[%clk 0:00:09]}  Kg8 {[%clk 0:00:08]} 46. h7+ {[%clk 0:00:09]}  Kh8 {[%clk 0:00:08]} 47. g4 {[%clk 0:00:07]}  Ne3+ {[%clk 0:00:07]} 48. Kg3 {[%clk 0:00:06]}  Nd1 {[%clk 0:00:07]} 49. Ne2 {[%clk 0:00:05]}  Rd2 {[%clk 0:00:06]} 50. Nf4 {[%clk 0:00:05]}  Rg2+ {[%clk 0:00:01]} 51. Kxg2 {[%clk 0:00:05]}  Ne3+ {[%clk 0:00:02]} 52. Kg1 {[%clk 0:00:06]}  Nxg4 {[%clk 0:00:02]} 53. Ng6# {[%clk 0:00:06]} 1-0


[Site "https://www.chess.com"]

[Event "Titled Tuesday Blitz January 31 Late 2023"]
[White "Nunez V, Gustavo Eduardo"]
[Black "Toncheva, Nadya"]
[WhiteFideId "4403690"]
[BlackFideId "2924056"]
[WhiteElo "2212"]
[BlackElo "2295"]
[Result "1/2-1/2"]
[Round "09"]
[TimeControl "180+2"]
[Date "2023.01.31"]
[WhiteClock "0:00:04"]
[BlackClock "0:00:04"]

1. e4 {[%clk 0:03:00]}  c5 {[%clk 0:03:00]} 2. Nc3 {[%clk 0:03:00]}  Nc6 {[%clk 0:02:59]} 3. g3 {[%clk 0:03:00]}  g6 {[%clk 0:02:58]} 4. Bg2 {[%clk 0:03:01]}  Bg7 {[%clk 0:02:59]} 5. d3 {[%clk 0:03:01]}  e6 {[%clk 0:02:58]} 6. Be3 {[%clk 0:03:01]}  Nd4 {[%clk 0:02:58]} 7. f4 {[%clk 0:03:00]}  Ne7 {[%clk 0:02:58]} 8. Nf3 {[%clk 0:03:00]}  O-O {[%clk 0:02:57]} 9. O-O {[%clk 0:03:00]}  d5 {[%clk 0:02:55]} 10. exd5 {[%clk 0:02:59]}  exd5 {[%clk 0:02:54]} 11. Rb1 {[%clk 0:02:58]}  Nef5 {[%clk 0:02:50]} 12. Bf2 {[%clk 0:02:55]}  Be6 {[%clk 0:02:48]} 13. Ne2 {[%clk 0:02:50]}  Nxf3+ {[%clk 0:02:47]} 14. Bxf3 {[%clk 0:02:50]}  Qc7 {[%clk 0:02:44]} 15. c3 {[%clk 0:02:48]}  Rfe8 {[%clk 0:02:43]} 16. Re1 {[%clk 0:02:42]}  Rac8 {[%clk 0:02:39]} 17. g4 {[%clk 0:02:41]}  Nd6 {[%clk 0:02:37]} 18. Ng3 {[%clk 0:02:38]}  d4 {[%clk 0:02:26]} 19. c4 {[%clk 0:02:36]}  Re7 {[%clk 0:02:19]} 20. Qd2 {[%clk 0:02:35]}  Rce8 {[%clk 0:02:16]} 21. Re2 {[%clk 0:02:35]}  Bc8 {[%clk 0:02:13]} 22. Rbe1 {[%clk 0:02:35]}  Rxe2 {[%clk 0:02:08]} 23. Rxe2 {[%clk 0:02:36]}  Qd8 {[%clk 0:02:02]} 24. h3 {[%clk 0:02:29]}  a6 {[%clk 0:01:43]} 25. Ne4 {[%clk 0:02:23]}  Nxe4 {[%clk 0:01:41]} 26. Rxe4 {[%clk 0:02:24]}  Rxe4 {[%clk 0:01:36]} 27. Bxe4 {[%clk 0:02:25]}  b5 {[%clk 0:01:34]} 28. b3 {[%clk 0:02:25]}  Qc7 {[%clk 0:01:30]} 29. Bg3 {[%clk 0:02:21]}  bxc4 {[%clk 0:01:29]} 30. bxc4 {[%clk 0:02:20]}  Qb6 {[%clk 0:01:28]} 31. Bd5 {[%clk 0:02:12]}  Be6 {[%clk 0:01:19]} 32. Bxe6 {[%clk 0:02:05]}  Qxe6 {[%clk 0:01:20]} 33. Kf2 {[%clk 0:02:00]}  h5 {[%clk 0:01:15]} 34. Qe2 {[%clk 0:01:58]}  Qd7 {[%clk 0:01:08]} 35. gxh5 {[%clk 0:01:31]}  Qxh3 {[%clk 0:01:07]} 36. hxg6 {[%clk 0:01:31]}  fxg6 {[%clk 0:01:07]} 37. Qe8+ {[%clk 0:01:29]}  Kh7 {[%clk 0:01:07]} 38. Qe7 {[%clk 0:01:25]}  Qc8 {[%clk 0:00:57]} 39. Bh4 {[%clk 0:01:20]}  Qc6 {[%clk 0:00:54]} 40. Bg5 {[%clk 0:01:12]}  Qb6 {[%clk 0:00:49]} 41. Kg3 {[%clk 0:01:11]}  Qb1 {[%clk 0:00:32]} 42. Qe2 {[%clk 0:01:08]}  Qg1+ {[%clk 0:00:30]} 43. Kf3 {[%clk 0:01:04]}  Qh1+ {[%clk 0:00:28]} 44. Qg2 {[%clk 0:01:00]}  Qe1 {[%clk 0:00:21]} 45. Kg4 {[%clk 0:00:41]}  Qe6+ {[%clk 0:00:19]} 46. Kg3 {[%clk 0:00:39]}  Qe1+ {[%clk 0:00:18]} 47. Qf2 {[%clk 0:00:37]}  Qd1 {[%clk 0:00:16]} 48. Qf3 {[%clk 0:00:34]}  Qd2 {[%clk 0:00:15]} 49. a4 {[%clk 0:00:31]}  Qc2 {[%clk 0:00:15]} 50. a5 {[%clk 0:00:30]}  Qc3 {[%clk 0:00:12]} 51. f5 {[%clk 0:00:24]}  Qe1+ {[%clk 0:00:11]} 52. Kg4 {[%clk 0:00:21]}  Qg1+ {[%clk 0:00:11]} 53. Kf4 {[%clk 0:00:21]}  Qh2+ {[%clk 0:00:10]} 54. Kg4 {[%clk 0:00:14]}  Qh5+ {[%clk 0:00:10]} 55. Kf4 {[%clk 0:00:13]}  Be5+ {[%clk 0:00:06]} 56. Ke4 {[%clk 0:00:11]}  Qxf3+ {[%clk 0:00:04]} 57. Kxf3 {[%clk 0:00:10]}  gxf5 {[%clk 0:00:05]} 58. Be7 {[%clk 0:00:11]}  Kg6 {[%clk 0:00:05]} 59. Bxc5 {[%clk 0:00:11]}  Kg5 {[%clk 0:00:04]} 60. Be7+ {[%clk 0:00:11]}  Kg6 {[%clk 0:00:04]} 61. c5 {[%clk 0:00:10]}  Kf7 {[%clk 0:00:04]} 62. Bd8 {[%clk 0:00:10]}  Ke6 {[%clk 0:00:04]} 63. c6 {[%clk 0:00:09]}  Bd6 {[%clk 0:00:03]} 64. Bb6 {[%clk 0:00:09]}  Bb4 {[%clk 0:00:03]} 65. Kf4 {[%clk 0:00:08]}  Bd6+ {[%clk 0:00:03]} 66. Kg5 {[%clk 0:00:07]}  Bb4 {[%clk 0:00:03]} 67. c7 {[%clk 0:00:05]}  Kd7 {[%clk 0:00:04]} 68. Kxf5 {[%clk 0:00:06]}  Bd6 {[%clk 0:00:03]} 69. Ke4 {[%clk 0:00:06]}  Bb4 {[%clk 0:00:01]} 70. Kxd4 {[%clk 0:00:05]}  Be1 {[%clk 0:00:02]} 71. Kd5 {[%clk 0:00:05]}  Bg3 {[%clk 0:00:02]} 72. d4 {[%clk 0:00:06]}  Bf2 {[%clk 0:00:02]} 73. Kc5 {[%clk 0:00:05]}  Bg3 {[%clk 0:00:03]} 74. Kc4 {[%clk 0:00:06]}  Bf2 {[%clk 0:00:03]} 75. Kd5 {[%clk 0:00:04]}  Be1 {[%clk 0:00:04]} 76. Ke5 {[%clk 0:00:04]}  Bg3+ {[%clk 0:00:04]} 77. Kf5 {[%clk 0:00:05]}  Be1 {[%clk 0:00:05]} 78. d5 {[%clk 0:00:05]}  Bd2 {[%clk 0:00:05]} 79. Kf6 {[%clk 0:00:05]}  Bc3+ {[%clk 0:00:05]} 80. Kf7 {[%clk 0:00:06]}  Bb4 {[%clk 0:00:06]} 81. c8=Q+ {[%clk 0:00:05]}  Kxc8 {[%clk 0:00:06]} 82. Ke8 {[%clk 0:00:06]}  Bd6 {[%clk 0:00:06]} 83. Bd4 {[%clk 0:00:06]}  Kc7 {[%clk 0:00:05]} 84. Bb6+ {[%clk 0:00:06]}  Kc8 {[%clk 0:00:06]} 85. Bd8 {[%clk 0:00:06]}  Bb4 {[%clk 0:00:04]} 86. Bb6 {[%clk 0:00:04]}  Bd6 {[%clk 0:00:04]} 1/2-1/2


[Site "https://www.chess.com"]

[Event "Titled Tuesday Blitz January 31 Late 2023"]
[White "QuiesPrecatio"]
[Black "Zampronha, Wladimir Camilo"]
[BlackFideId "2103087"]
[WhiteElo "2426"]
[BlackElo "2176"]
[Result "1-0"]
[Round "09"]
[TimeControl "180+2"]
[Date "2023.01.31"]
[WhiteClock "0:00:11"]
[BlackClock "0:00:01"]

1. Nf3 {[%clk 0:02:56]}  Nf6 {[%clk 0:02:59]} 2. g3 {[%clk 0:02:57]}  e6 {[%clk 0:03:00]} 3. Bg2 {[%clk 0:02:58]}  d5 {[%clk 0:03:00]} 4. O-O {[%clk 0:02:59]}  Be7 {[%clk 0:03:01]} 5. d3 {[%clk 0:02:59]}  O-O {[%clk 0:03:00]} 6. Nbd2 {[%clk 0:03:00]}  b6 {[%clk 0:02:57]} 7. e4 {[%clk 0:03:00]}  Bb7 {[%clk 0:02:56]} 8. Re1 {[%clk 0:03:00]}  c5 {[%clk 0:02:56]} 9. e5 {[%clk 0:02:59]}  Nfd7 {[%clk 0:02:56]} 10. Nf1 {[%clk 0:02:59]}  Nc6 {[%clk 0:02:52]} 11. h4 {[%clk 0:02:56]}  b5 {[%clk 0:02:48]} 12. N1h2 {[%clk 0:02:52]}  a5 {[%clk 0:02:46]} 13. Ng4 {[%clk 0:02:45]}  b4 {[%clk 0:02:45]} 14. h5 {[%clk 0:02:44]}  Re8 {[%clk 0:02:22]} 15. Bf4 {[%clk 0:02:34]}  Bf8 {[%clk 0:02:19]} 16. Qd2 {[%clk 0:01:59]}  Nd4 {[%clk 0:02:03]} 17. h6 {[%clk 0:01:48]}  Nxf3+ {[%clk 0:02:00]} 18. Bxf3 {[%clk 0:01:49]}  g6 {[%clk 0:02:01]} 19. Bg5 {[%clk 0:01:47]}  Qb6 {[%clk 0:01:55]} 20. Qf4 {[%clk 0:01:43]}  d4 {[%clk 0:01:37]} 21. Bxb7 {[%clk 0:01:32]}  Qxb7 {[%clk 0:01:37]} 22. Re4 {[%clk 0:01:32]}  a4 {[%clk 0:01:24]} 23. Rf1 {[%clk 0:01:13]}  b3 {[%clk 0:01:20]} 24. cxb3 {[%clk 0:01:11]}  axb3 {[%clk 0:01:15]} 25. a3 {[%clk 0:01:12]}  Rec8 {[%clk 0:00:54]} 26. Rc1 {[%clk 0:01:10]}  Qd5 {[%clk 0:00:48]} 27. Bf6 {[%clk 0:00:59]}  Rc6 {[%clk 0:00:46]} 28. Ree1 {[%clk 0:00:49]}  Rac8 {[%clk 0:00:42]} 29. Bg7 {[%clk 0:00:45]}  c4 {[%clk 0:00:37]} 30. Bxf8 {[%clk 0:00:42]}  Kxf8 {[%clk 0:00:32]} 31. dxc4 {[%clk 0:00:33]}  Rxc4 {[%clk 0:00:31]} 32. Rxc4 {[%clk 0:00:34]}  Rxc4 {[%clk 0:00:30]} 33. Nf6 {[%clk 0:00:35]}  Nxf6 {[%clk 0:00:19]} 34. Qxf6 {[%clk 0:00:35]}  d3 {[%clk 0:00:18]} 35. Rd1 {[%clk 0:00:14]}  d2 {[%clk 0:00:15]} 36. Qg5 {[%clk 0:00:14]}  Rc1 {[%clk 0:00:14]} 37. Rxc1 {[%clk 0:00:14]}  dxc1=Q+ {[%clk 0:00:13]} 38. Qxc1 {[%clk 0:00:15]}  Qxe5 {[%clk 0:00:13]} 39. Qc8+ {[%clk 0:00:15]}  Ke7 {[%clk 0:00:13]} 40. Qb7+ {[%clk 0:00:16]}  Kf6 {[%clk 0:00:13]} 41. Qxb3 {[%clk 0:00:16]}  Qe1+ {[%clk 0:00:12]} 42. Kg2 {[%clk 0:00:16]}  g5 {[%clk 0:00:09]} 43. Qd3 {[%clk 0:00:15]}  g4 {[%clk 0:00:07]} 44. Qxh7 {[%clk 0:00:14]}  Qe2 {[%clk 0:00:02]} 45. Qg7+ {[%clk 0:00:14]}  Ke7 {[%clk 0:00:02]} 46. Qg5+ {[%clk 0:00:14]}  f6 {[%clk 0:00:01]} 47. Qg7+ {[%clk 0:00:14]}  Kd6 {[%clk 0:00:01]} 48. Qxf6 {[%clk 0:00:11]} 1-0


[Site "https://www.chess.com"]

[Event "Titled Tuesday Blitz January 31 Late 2023"]
[White "Antonio, Jorge Carlos"]
[Black "Forgacs, Attila Jr."]
[WhiteFideId "113190"]
[BlackFideId "773654"]
[WhiteElo "2277"]
[BlackElo "2264"]
[Result "1-0"]
[Round "09"]
[TimeControl "180+2"]
[Date "2023.01.31"]
[WhiteClock "0:01:27"]
[BlackClock "0:00:02"]

1. e4 {[%clk 0:03:00]}  e5 {[%clk 0:02:59]} 2. f4 {[%clk 0:02:55]}  exf4 {[%clk 0:02:58]} 3. Nf3 {[%clk 0:02:55]}  g5 {[%clk 0:02:59]} 4. d4 {[%clk 0:02:53]}  Bg7 {[%clk 0:02:57]} 5. Nc3 {[%clk 0:02:50]}  d6 {[%clk 0:02:57]} 6. h4 {[%clk 0:02:49]}  h6 {[%clk 0:02:51]} 7. Bb5+ {[%clk 0:02:46]}  c6 {[%clk 0:02:50]} 8. Ba4 {[%clk 0:02:43]}  Nd7 {[%clk 0:02:24]} 9. Bb3 {[%clk 0:02:38]}  g4 {[%clk 0:02:04]} 10. Ng1 {[%clk 0:02:34]}  Qf6 {[%clk 0:01:59]} 11. Qxg4 {[%clk 0:02:27]}  Qxd4 {[%clk 0:01:20]} 12. Nf3 {[%clk 0:02:18]}  Qf6 {[%clk 0:01:06]} 13. Bxf4 {[%clk 0:02:11]}  Nc5 {[%clk 0:00:55]} 14. Qg3 {[%clk 0:02:10]}  Nxb3 {[%clk 0:00:29]} 15. axb3 {[%clk 0:02:09]}  Ne7 {[%clk 0:00:26]} 16. O-O-O {[%clk 0:02:03]}  O-O {[%clk 0:00:14]} 17. Rxd6 {[%clk 0:02:00]}  Be6 {[%clk 0:00:15]} 18. Rhd1 {[%clk 0:01:50]}  Ng6 {[%clk 0:00:14]} 19. Be3 {[%clk 0:01:40]}  a5 {[%clk 0:00:15]} 20. h5 {[%clk 0:01:39]}  Ne7 {[%clk 0:00:07]} 21. Bd4 {[%clk 0:01:30]}  Nf5 {[%clk 0:00:02]} 22. exf5 {[%clk 0:01:27]} 1-0


[Site "https://www.chess.com"]

[Event "Titled Tuesday Blitz January 31 Late 2023"]
[White "Osmonbekov, Talaibek"]
[Black "Bon, Michael"]
[WhiteFideId "2017253"]
[BlackFideId "620696"]
[WhiteElo "2137"]
[BlackElo "2394"]
[Result "1-0"]
[Round "09"]
[TimeControl "180+2"]
[Date "2023.01.31"]
[WhiteClock "0:00:34"]
[BlackClock "0:00:16"]

1. d4 {[%clk 0:03:00]}  d5 {[%clk 0:02:54]} 2. Bf4 {[%clk 0:03:01]}  c5 {[%clk 0:02:53]} 3. e3 {[%clk 0:03:00]}  Nc6 {[%clk 0:02:53]} 4. Nc3 {[%clk 0:03:00]}  Bf5 {[%clk 0:02:47]} 5. Bd3 {[%clk 0:02:48]}  Bxd3 {[%clk 0:02:44]} 6. Qxd3 {[%clk 0:02:49]}  e6 {[%clk 0:02:39]} 7. Nf3 {[%clk 0:02:36]}  c4 {[%clk 0:02:38]} 8. Qe2 {[%clk 0:02:32]}  Bb4 {[%clk 0:02:38]} 9. O-O {[%clk 0:02:29]}  Bxc3 {[%clk 0:02:37]} 10. bxc3 {[%clk 0:02:28]}  Nf6 {[%clk 0:02:37]} 11. Rab1 {[%clk 0:02:27]}  b6 {[%clk 0:02:32]} 12. Bg5 {[%clk 0:02:23]}  h6 {[%clk 0:02:30]} 13. Bxf6 {[%clk 0:02:21]}  Qxf6 {[%clk 0:02:31]} 14. e4 {[%clk 0:02:22]}  O-O {[%clk 0:02:31]} 15. Rb5 {[%clk 0:02:10]}  Rad8 {[%clk 0:02:30]} 16. Re1 {[%clk 0:02:06]}  Rd7 {[%clk 0:02:26]} 17. h3 {[%clk 0:02:01]}  Qd8 {[%clk 0:02:25]} 18. a4 {[%clk 0:01:53]}  Qc7 {[%clk 0:02:02]} 19. exd5 {[%clk 0:01:37]}  exd5 {[%clk 0:01:57]} 20. Qd2 {[%clk 0:01:33]}  Rfd8 {[%clk 0:01:47]} 21. Ne5 {[%clk 0:01:17]}  Re7 {[%clk 0:01:37]} 22. Nxc6 {[%clk 0:01:13]}  Rxe1+ {[%clk 0:01:36]} 23. Qxe1 {[%clk 0:01:09]}  Qxc6 {[%clk 0:01:36]} 24. Qe7 {[%clk 0:01:07]}  Re8 {[%clk 0:01:36]} 25. Qxa7 {[%clk 0:01:05]}  Re1+ {[%clk 0:01:36]} 26. Kh2 {[%clk 0:01:06]}  Qd6+ {[%clk 0:01:34]} 27. g3 {[%clk 0:01:06]}  Qe6 {[%clk 0:01:10]} 28. Qa8+ {[%clk 0:01:00]}  Kh7 {[%clk 0:01:06]} 29. Qxd5 {[%clk 0:01:01]}  Qe2 {[%clk 0:01:01]} 30. Qf5+ {[%clk 0:01:00]}  Kg8 {[%clk 0:00:54]} 31. Rxb6 {[%clk 0:01:00]}  f6 {[%clk 0:00:45]} 32. Rb8+ {[%clk 0:00:59]}  Kf7 {[%clk 0:00:45]} 33. Rb7+ {[%clk 0:00:58]}  Kg8 {[%clk 0:00:44]} 34. a5 {[%clk 0:00:45]}  Qf1 {[%clk 0:00:32]} 35. Qd5+ {[%clk 0:00:41]}  Kh7 {[%clk 0:00:28]} 36. Qf5+ {[%clk 0:00:40]}  Kg8 {[%clk 0:00:27]} 37. Rb8+ {[%clk 0:00:39]}  Kf7 {[%clk 0:00:27]} 38. Qd5+ {[%clk 0:00:39]}  Kg6 {[%clk 0:00:25]} 39. Qg2 {[%clk 0:00:39]}  Qe2 {[%clk 0:00:23]} 40. a6 {[%clk 0:00:39]}  Rf1 {[%clk 0:00:23]} 41. a7 {[%clk 0:00:38]}  Rxf2 {[%clk 0:00:23]} 42. a8=Q {[%clk 0:00:38]}  Qxc2 {[%clk 0:00:16]} 43. Qc6 {[%clk 0:00:34]} 1-0


[Site "https://www.chess.com"]